bitfinex/quotes_ETHUSD_20240603
["timestamp","ask_amount","ask_price","bid_price","bid_amount"]
[1717438536132,0.64647527,3780.7,3780.3,2.64528]
[1717438536333,2.42128739,3781.1,3780.4,1.32126577]
[1717438536803,2.42128739,3781.2,3780.4,1.32126577]
[1717438537007,1.58857331,3781.2,3780.4,1.32126577]
[1717438537223,1.58857331,3781.3,3780.4,1.32126577]
[1717438537927,5.91499408,3781.4,3780.6,2.64503]
[1717438537928,6.67085331,3781.4,3780.6,2.64503]
[1717438538129,3.59149941,3781.3,3780.7,1.32126577]
[1717438539420,2.6447,3781.2,3780.2,2.64532]
[1717438539595,2.6447,3781.2,3780.3,1.32126577]
[1717438545010,0.05205731,3781.1,3780.3,1.32126577]
[1717438545325,2.64488,3780.9,3780.3,1.32126577]
[1717438545923,0.05188113,3780.8,3780.3,1.32126577]
[1717438549806,1.63994125,3780.8,3780.3,1.32126577]
[1717438550203,1.58806012,3780.7,3780.3,1.32126577]
[1717438550452,0.05184433,3780.7,3780.3,1.32126577]
[1717438550749,0.42847845,3780.6,3780.3,1.32126577]
[1717438550923,0.48012148,3780.6,3780.3,1.32126577]
[1717438553239,2.0681816,3780.6,3780.3,1.32126577]
[1717438555228,1.58806012,3780.5,3780.3,1.32126577]
[1717438555428,1.63966635,3780.5,3780.3,1.32126577]
[1717438555919,1.84648083,3780.5,3780.3,1.32126577]
[1717438556321,1.58806012,3780.4,3780.3,1.32126577]
[1717438556542,0.05156943,3780.4,3780.3,1.32126577]
[1717438559047,1.63962955,3780.4,3780.3,1.32126577]
[1717438561342,0.05156943,3780.4,3780.3,1.32126577]
[1717438561555,2.3226,3780.8,3780.3,1.32126577]
[1717438561756,0.0516325,3780.4,3780.3,1.32126577]
[1717438561965,0.496748,3780.7,3780.3,1.32126577]
[1717438562169,0.0516325,3780.4,3780.3,1.32126577]
[1717438562343,0.496748,3780.7,3780.3,1.32126577]
[1717438562548,0.0516325,3780.4,3780.3,1.32126577]
[1717438562754,0.496748,3780.7,3780.3,1.32126577]
[1717438563062,0.0516325,3780.4,3780.3,1.32126577]
[1717438563242,0.5464228,3780.6,3780.3,1.32126577]
[1717438563442,0.0516325,3780.4,3780.3,1.32126577]
[1717438563637,0.5464228,3780.6,3780.3,1.32126577]
[1717438563866,0.0516325,3780.4,3780.3,1.32126577]
[1717438564072,0.5464228,3780.6,3780.3,1.32126577]
[1717438564258,0.0516325,3780.4,3780.3,1.32126577]
[1717438564463,0.5464228,3780.6,3780.3,1.32126577]
[1717438564934,0.05170493,3780.5,3780.3,1.32126577]
[1717438565372,2.3226,3780.8,3780.3,1.32126577]
[1717438565579,0.05166813,3780.4,3780.3,1.32126577]
[1717438565874,2.64488,3780.9,3780.3,1.32126577]
[1717438566180,2.64488,3780.9,3780.4,0.798]
[1717438566181,0.0505347,3780.8,3780.4,0.798]
[1717438566693,0.0505347,3780.8,3780.5,1.32126577]
[1717438567036,0.83271408,3781.2,3780.5,1.32126577]
[1717438567257,0.05055222,3780.7,3780.5,1.32126577]
[1717438567475,0.83271408,3781.2,3780.5,1.32126577]
[1717438567694,0.83271408,3781.2,3780.6,0.798]
[1717438567981,0.83271408,3781.2,3780.6,2.11926577]
[1717438568676,0.83271408,3781.1,3780.6,1.32126577]
[1717438571265,0.83271408,3781.0,3780.6,1.32126577]
[1717438571773,0.83271408,3781.0,3780.9,0.798]
[1717438571940,0.83271408,3781.0,3780.9,2.11926577]
[1717438572141,1.11010938,3781.2,3780.9,2.11926577]
[1717438572142,0.83271408,3781.2,3780.9,2.11926577]
[1717438572375,0.83271408,3781.2,3781.0,1.32126577]
[1717438572762,1.11010938,3781.4,3781.0,1.32126577]
[1717438572763,0.83271408,3781.4,3781.0,1.32126577]
[1717438572951,3.75448938,3781.6,3781.0,1.32126577]
[1717438572952,0.83271408,3781.5,3781.0,1.32126577]
[1717438573536,2.64438,3781.6,3781.0,1.32126577]
[1717438573537,0.83271408,3781.4,3781.0,1.32126577]
[1717438573732,1.37123443,3781.4,3781.0,1.32126577]
[1717438573964,0.83271408,3781.3,3781.0,1.32126577]
[1717438574181,0.83271408,3781.3,3780.5,2.64508]
[1717438574182,2.3687,3781.2,3780.5,2.64508]
[1717438574384,1.58781456,3780.7,3780.6,1.32126577]
[1717438574548,0.83271408,3781.0,3780.6,1.32126577]
[1717438574749,1.5879972,3780.7,3780.6,1.32126577]
[1717438575151,1.6336236,3780.7,3780.6,1.32126577]
[1717438575773,0.0456264,3780.7,3779.9,2.6455]
[1717438576093,1.58800004,3780.4,3780.0,1.32126577]
[1717438576287,1.58800004,3780.4,3780.1,0.798]
[1717438576581,0.04547644,3780.3,3780.2,1.32126577]
[1717438576797,1.58800004,3780.5,3780.2,1.32126577]
[1717438577009,0.04547644,3780.3,3780.2,1.32126577]
[1717438577310,1.58800004,3780.5,3780.2,1.32126577]
[1717438577462,0.04547644,3780.3,3780.2,1.32126577]
[1717438577802,1.6335733,3780.3,3780.2,1.32126577]
[1717438580387,0.04557326,3780.3,3780.2,2.59574235]
[1717438580821,1.58800004,3780.5,3780.3,2.64529]
[1717438581119,1.58800004,3780.5,3780.4,2.11926577]
[1717438581419,0.57168579,3780.5,3780.4,2.11926577]
[1717438582798,2.42072064,3780.6,3780.5,2.64515]
[1717438582996,2.15968675,3780.6,3780.5,3.96641577]
[1717438583910,0.83271408,3780.7,3780.5,3.96641577]
[1717438584117,2.15968157,3780.6,3780.5,2.64515]
[1717438584429,2.99239565,3780.6,3780.5,2.64515]
[1717438584582,2.99239565,3780.6,3780.5,5.04445]
[1717438584922,0.57168041,3780.6,3780.5,5.628695]
[1717438585121,1.11010938,3781.1,3780.5,5.628695]
[1717438585122,0.83271408,3781.0,3780.8,2.64494]
[1717438585333,0.57161718,3780.9,3780.8,3.44294]
[1717438585620,0.57161718,3781.1,3780.8,5.40685427]
[1717438585839,0.57158153,3781.1,3781.0,3.4428]
[1717438586141,0.83271408,3781.3,3781.0,4.76406577]
[1717438586347,0.57155931,3781.2,3781.1,1.32126577]
[1717438586648,1.40427339,3781.2,3781.1,1.32126577]
[1717438587325,0.57155931,3781.2,3781.1,1.32126577]
[1717438588200,0.57155931,3781.3,3781.1,1.32126577]
[1717438588406,0.57155931,3781.2,3781.1,1.32126577]
[1717438589429,1.40427339,3781.2,3781.1,1.32126577]
[1717438589931,0.57155931,3781.2,3781.1,1.32126577]
[1717438590234,2.4896,3781.1,3780.4,2.64521]
[1717438590391,2.4896,3781.1,3780.5,1.32126577]
[1717438590392,0.8315567,3780.7,3780.5,1.32126577]
[1717438590597,0.57155931,3780.6,3780.5,1.32126577]
[1717438590838,0.61742807,3780.6,3780.5,1.32126577]
[1717438592856,0.04586876,3780.6,3780.5,1.32126577]
[1717438593179,0.61742807,3780.6,3780.5,1.32126577]
[1717438594535,0.04586876,3780.6,3780.5,1.32126577]
[1717438594740,0.61742807,3780.6,3780.5,1.32126577]
[1717438595058,0.04586876,3780.6,3780.5,1.32126577]
[1717438595653,0.61742807,3780.6,3780.5,1.32126577]
[1717438595876,0.04586876,3780.6,3780.5,1.32126577]
[1717438596242,0.61742807,3780.6,3780.5,1.32126577]
[1717438596443,0.04586876,3780.6,3780.5,1.32126577]
[1717438596643,0.61742807,3780.6,3780.5,1.32126577]
[1717438596894,0.04586876,3780.6,3780.5,1.32126577]
[1717438597390,0.57155931,3780.7,3780.5,1.32126577]
[1717438597545,0.61584609,3780.6,3780.5,1.32126577]
[1717438597752,0.04428678,3780.6,3780.5,1.32126577]
[1717438598074,0.57155931,3780.7,3780.5,1.32126577]
[1717438598285,0.8315567,3780.8,3780.5,1.32126577]
[1717438598286,0.57155931,3780.6,3780.5,1.32126577]
[1717438598597,0.61584609,3780.6,3780.5,1.32126577]
[1717438599007,0.04428678,3780.6,3780.5,1.32126577]
[1717438599307,0.61584609,3780.6,3780.5,1.32126577]
[1717438599510,0.04428678,3780.6,3780.5,1.32126577]
[1717438599689,0.61584609,3780.6,3780.5,1.32126577]
[1717438599875,0.04428678,3780.6,3780.5,1.32126577]
[1717438600198,0.61584609,3780.6,3780.5,1.32126577]
[1717438600402,0.04428678,3780.6,3780.5,2.59572035]
[1717438600807,0.57162869,3780.7,3780.5,2.59572035]
[1717438600808,0.57162869,3780.7,3780.6,2.64508]
[1717438600994,0.57162869,3780.7,3780.6,3.96634577]
[1717438601526,0.57162869,3780.8,3780.6,3.96634577]
[1717438601826,0.8315567,3780.9,3780.7,1.32126577]
[1717438602015,0.57163274,3780.8,3780.7,1.32126577]
[1717438605087,0.6159033,3780.8,3780.7,1.32126577]
[1717438607471,0.6159033,3780.8,3780.7,2.11926577]
[1717438610145,0.04427056,3780.8,3780.7,2.11926577]
[1717438610353,0.04427056,3780.8,3780.7,2.88251581]
[1717438610565,0.04427056,3780.8,3780.7,2.08451581]
[1717438610879,0.04427056,3780.8,3780.7,2.88251581]
[1717438611638,0.57160046,3780.9,3780.8,2.64494]
[1717438611882,1.11010938,3781.3,3780.8,4.56659681]
[1717438611883,0.8315567,3781.2,3780.8,4.56659681]
[1717438612079,0.57158401,3781.1,3781.0,2.6448]
[1717438612283,0.57158401,3781.1,3781.0,3.96606577]
[1717438612456,1.40314071,3781.1,3781.0,3.96606577]
[1717438613463,1.40314071,3781.1,3781.0,4.57883646]
[1717438613649,0.57158401,3781.1,3781.0,4.57883646]
[1717438613846,0.57158464,3781.1,3781.0,4.57883646]
[1717438614775,0.57158464,3781.2,3781.0,5.37683646]
[1717438614938,0.8315567,3781.4,3781.1,1.85894942]
[1717438615138,0.57155358,3781.3,3781.2,0.798]
[1717438615356,0.57155358,3781.3,3781.2,2.11926577]
[1717438619993,0.6160231,3781.3,3781.2,2.11926577]
[1717438621008,0.61603598,3781.3,3781.2,2.11926577]
[1717438621158,3.32250619,3781.3,3780.7,2.645]
[1717438621336,0.8315567,3781.1,3780.8,1.32126577]
[1717438621840,0.6159256,3781.0,3780.8,1.32126577]
[1717438622050,0.57156646,3780.9,3780.8,1.32126577]
[1717438622271,0.6158888,3780.9,3780.8,1.32126577]
[1717438624355,0.6158888,3780.9,3780.8,4.11589335]
[1717438624544,0.04432234,3780.9,3780.8,4.11589335]
[1717438624944,0.8315567,3781.6,3781.1,2.64466]
[1717438625144,0.57154068,3781.5,3781.2,2.11926577]
[1717438625359,0.57154068,3781.4,3781.2,2.11926577]
[1717438625560,0.04446071,3781.5,3781.2,2.59565835]
[1717438625754,1.11010938,3781.8,3781.4,0.798]
[1717438625755,0.8315567,3781.7,3781.4,0.798]
[1717438625992,0.57149876,3781.6,3781.5,6.22441577]
[1717438626202,0.57149097,3781.7,3781.5,7.02241577]
[1717438626494,3.82150119,3782.4,3781.5,7.02241577]
[1717438626495,0.8315567,3782.3,3781.7,2.64431]
[1717438626658,0.5714292,3782.2,3781.9,0.798]
[1717438626837,0.5714292,3782.3,3782.0,1.32126577]
[1717438627042,0.5714292,3782.2,3782.1,0.798]
[1717438627245,0.5714292,3782.3,3782.1,2.11926577]
[1717438627465,0.5714292,3782.4,3782.1,2.11926577]
[1717438627893,0.5714292,3782.4,3782.1,1.32126577]
[1717438628952,0.5714292,3782.5,3782.1,1.32126577]
[1717438629284,1.40297312,3782.5,3782.1,1.32126577]
[1717438629485,3.1812567,3782.7,3782.1,1.32126577]
[1717438629646,0.57140946,3782.6,3782.2,1.32126577]
[1717438630281,0.8315567,3782.7,3782.2,1.32126577]
[1717438630282,0.57140946,3782.7,3782.2,1.32126577]
[1717438630496,1.61282001,3782.7,3782.2,1.32126577]
[1717438630796,3.8315567,3782.8,3782.2,1.32126577]
[1717438630797,0.57139256,3782.6,3782.3,0.798]
[1717438630944,0.57139256,3782.6,3782.4,1.32126577]
[1717438631287,0.57139256,3782.7,3782.4,1.32126577]
[1717438631452,0.8315567,3782.9,3782.4,1.32126577]
[1717438631453,1.40294926,3782.9,3782.4,1.32126577]
[1717438631652,0.55685586,3782.8,3782.4,1.32126577]
[1717438632145,1.12824842,3782.8,3782.4,1.32126577]
[1717438632590,1.12824842,3782.8,3781.7,2.64427]
[1717438632747,0.798,3782.6,3781.8,1.32126577]
[1717438632948,0.27578167,3782.5,3781.8,1.32126577]
[1717438634101,2.3044,3782.4,3781.8,1.32126577]
[1717438634962,0.04356311,3782.3,3781.8,1.32126577]
[1717438636807,0.04356311,3782.3,3781.9,0.798]
[1717438636967,0.04356311,3782.3,3782.0,1.32126577]
[1717438638408,0.04356311,3782.3,3782.0,3.96533577]
[1717438638561,0.04356311,3782.3,3782.0,4.44166935]
[1717438638903,0.04214364,3782.2,3782.0,4.44166935]
[1717438639108,1.40299883,3782.9,3782.0,4.44166935]
[1717438639264,0.04212077,3782.1,3782.0,3.96533577]
[1717438639458,2.20099883,3782.9,3782.0,3.96533577]
[1717438639674,0.04212077,3782.1,3782.0,3.96533577]
[1717438639890,0.57144213,3782.8,3782.0,3.96533577]
[1717438640162,0.04202151,3782.1,3782.0,3.96533577]
[1717438640393,0.57144213,3782.8,3782.0,4.44166935]
[1717438640700,0.04224217,3782.7,3782.0,3.96533577]
[1717438642265,2.2941,3782.6,3782.0,3.96533577]
[1717438642617,0.57144213,3782.5,3782.0,3.96533577]
[1717438643033,0.04213185,3782.4,3782.0,1.32126577]
[1717438643464,0.41269925,3782.4,3781.6,2.64433]
[1717438643805,0.798,3782.3,3781.7,1.32126577]
[1717438643964,0.798,3782.1,3781.7,1.32126577]
[1717438644302,2.48208473,3782.0,3781.7,1.32126577]
[1717438645661,2.48208473,3782.0,3781.2,2.6446]
[1717438645862,2.38551986,3781.9,3781.3,1.32126577]
[1717438646106,2.42746513,3781.9,3781.3,1.32126577]
[1717438646264,1.58751986,3781.8,3781.3,1.32126577]
[1717438646473,1.62942834,3781.8,3781.3,1.32126577]
[1717438646863,0.04190848,3781.8,3781.3,2.11926577]
[1717438647212,0.04190848,3781.8,3781.4,2.75968658]
[1717438647402,0.04190848,3781.8,3781.5,1.32126577]
[1717438647704,1.58751986,3782.0,3781.5,1.32126577]
[1717438647864,0.04184138,3781.7,3781.5,1.32126577]
[1717438648066,1.58751986,3782.0,3781.5,1.32126577]
[1717438648490,0.04194794,3781.9,3781.5,1.32126577]
[1717438650129,1.6294678,3781.9,3781.5,1.32126577]
[1717438650302,0.04194794,3781.9,3781.5,1.32126577]
[1717438650472,1.6294678,3781.9,3781.5,1.32126577]
[1717438652444,2.38551986,3781.8,3781.5,1.32126577]
[1717438652613,2.4513,3781.7,3780.8,5.87027]
[1717438652795,0.798,3781.6,3780.9,1.32126577]
[1717438653000,1.60918492,3781.6,3780.9,1.32126577]
[1717438653241,0.04041763,3781.5,3780.9,1.32126577]
[1717438653552,1.62799114,3781.5,3780.9,1.32126577]
[1717438653704,0.798,3781.3,3780.9,1.32126577]
[1717438653908,1.58757351,3781.4,3780.9,1.32126577]
[1717438654224,0.04018616,3781.2,3780.9,1.32126577]
[1717438654544,0.04014936,3781.1,3780.9,1.32126577]
[1717438654756,1.58757351,3781.3,3780.9,1.32126577]
[1717438654925,0.04011256,3781.0,3780.9,1.32126577]
[1717438655112,1.58757351,3781.3,3780.9,1.32126577]
[1717438655319,0.04011256,3781.0,3780.9,1.32126577]
[1717438655545,1.58757351,3781.4,3780.9,1.32126577]
[1717438655715,0.04011256,3781.0,3780.9,1.32126577]
[1717438655922,1.58757351,3781.3,3780.9,1.32126577]
[1717438656159,0.04011256,3781.0,3780.9,1.32126577]
[1717438656652,1.58757351,3781.4,3780.9,1.32126577]
[1717438656854,0.04022296,3781.3,3780.9,1.32126577]
[1717438657040,1.62779647,3781.3,3780.9,1.32126577]
[1717438657240,2.13613261,3781.3,3780.4,5.13786]
[1717438657435,0.5485591,3781.3,3780.5,1.32126577]
[1717438657836,2.13613261,3781.3,3780.5,1.32126577]
[1717438658244,0.04022296,3781.3,3780.5,1.32126577]
[1717438658452,1.58757351,3781.2,3780.5,1.32126577]
[1717438658678,0.04014936,3781.1,3780.5,1.32126577]
[1717438658885,1.62772287,3781.1,3780.5,1.32126577]
[1717438659242,0.04014936,3781.1,3780.5,1.32126577]
[1717438659536,3.95382287,3781.1,3780.5,1.32126577]
[1717438659987,1.58757351,3780.9,3780.5,1.32126577]
[1717438660216,1.58757351,3780.9,3780.0,2.64543]
[1717438660360,2.6448,3781.0,3780.1,1.32126577]
[1717438660361,1.62771929,3780.8,3780.1,1.32126577]
[1717438660692,1.58757351,3780.7,3780.1,1.32126577]
[1717438660842,0.55060168,3780.7,3780.1,1.32126577]
[1717438661051,1.58815075,3780.5,3780.1,1.32126577]
[1717438661242,0.04010378,3780.4,3780.1,1.32126577]
[1717438661793,1.58815075,3780.6,3780.1,1.32126577]
[1717438662347,0.04022097,3780.5,3780.1,1.32126577]
[1717438662520,2.09855835,3780.7,3780.1,1.32126577]
[1717438662801,0.04018417,3780.4,3780.1,1.32126577]
[1717438663107,0.03992869,3780.3,3780.1,1.32126577]
[1717438663285,1.58815075,3780.7,3780.1,1.32126577]
[1717438663488,0.03960281,3780.2,3780.1,1.32126577]
[1717438663685,1.58815075,3780.7,3780.1,1.32126577]
[1717438663893,0.03960281,3780.2,3780.1,1.32126577]
[1717438664093,1.58815075,3780.7,3780.1,1.32126577]
[1717438664094,1.58814826,3780.7,3780.1,1.32126577]
[1717438664395,2.6448,3781.0,3780.1,1.32126577]
[1717438664396,0.03944201,3780.2,3780.1,1.32126577]
[1717438664556,1.58814826,3780.9,3780.1,1.96215535]
[1717438664756,0.03944201,3780.2,3780.1,1.32126577]
[1717438664957,1.58814826,3780.9,3780.1,1.32126577]
[1717438665190,0.03944201,3780.2,3780.1,1.32126577]
[1717438665503,1.58814826,3780.9,3780.1,1.96215535]
[1717438665673,0.03930131,3780.2,3780.1,1.32126577]
[1717438665869,4.23294826,3781.0,3780.1,1.32126577]
[1717438666107,0.03932141,3780.2,3780.1,1.32126577]
[1717438666388,4.23286114,3781.0,3780.1,1.32126577]
[1717438666893,1.62776078,3780.9,3780.1,1.32126577]
[1717438667062,0.74302175,3780.8,3780.1,1.32126577]
[1717438667262,0.78268459,3780.8,3780.1,1.32126577]
[1717438670500,2.37074573,3780.8,3780.1,1.32126577]
[1717438670805,2.64502,3780.7,3780.1,1.32126577]
[1717438671178,0.03962943,3780.6,3780.1,1.32126577]
[1717438672074,0.03962943,3780.6,3780.1,3.63696577]
[1717438673704,1.58806114,3780.9,3780.1,3.63696577]
[1717438673903,0.03965569,3780.5,3780.1,3.63696577]
[1717438674110,1.58806114,3780.9,3780.1,3.63696577]
[1717438674314,0.03961889,3780.4,3780.1,3.63696577]
[1717438674491,1.58806114,3780.8,3780.1,3.63696577]
[1717438674807,0.03948159,3780.3,3780.1,3.63696577]
[1717438674982,1.58806114,3780.8,3780.1,3.63696577]
[1717438675307,1.58809326,3780.8,3780.1,3.63696577]
[1717438675479,0.03962881,3780.7,3780.2,2.64535]
[1717438675800,0.03962881,3780.7,3780.3,1.32126577]
[1717438676221,2.38609326,3781.0,3780.3,1.32126577]
[1717438676372,0.039592,3780.6,3780.3,1.32126577]
[1717438676575,2.38609326,3781.0,3780.3,2.02929735]
[1717438676801,0.0395552,3780.5,3780.4,2.64522]
[1717438677112,0.0395552,3780.5,3780.4,3.96648577]
[1717438677409,1.58809326,3781.1,3780.4,3.96648577]
[1717438677613,1.58809326,3781.1,3780.6,2.64504]
[1717438677913,1.58809326,3781.3,3780.8,2.64493]
[1717438678113,1.58809326,3781.3,3780.9,1.32126577]
[1717438679037,1.58809326,3781.3,3780.7,0.47643058]
[1717438679038,1.38107349,3783.0,3781.8,2.64424]
[1717438679314,0.86965191,3783.3,3782.7,5.42761]
[1717438679487,0.86965191,3783.3,3782.9,2.784]
[1717438679685,1e-08,3783.3,3783.1,5.42733]
[1717438679998,0.0395006,3784.1,3783.3,3.06011744]
[1717438680167,0.0395006,3784.1,3783.5,2.784]
[1717438680515,0.0395006,3784.1,3783.9,5.42677]
[1717438680711,0.0395006,3784.1,3784.0,4.10253633]
[1717438680916,0.00412558,3784.1,3784.0,3.334]
[1717438681183,0.00412558,3784.1,3783.9,2.64277]
[1717438686214,0.00412558,3784.1,3784.0,1.32126577]
[1717438688343,0.00412558,3784.1,3784.0,1.71766935]
[1717438688711,0.00043057,3784.1,3784.0,1.71766935]
[1717438689111,0.00043057,3784.1,3784.0,4.12276935]
[1717438689640,0.00043057,3784.1,3784.0,6.90676935]
[1717438692062,0.00043057,3784.1,3783.9,2.64277]
[1717438692299,0.00043057,3784.1,3782.4,12.18]
[1717438692300,0.00043057,3784.1,3782.3,7.32]
[1717438692481,0.00043057,3784.1,3782.2,14.65148591]
[1717438692482,1.911,3783.2,3782.2,14.65148591]
[1717438692777,1.911,3783.2,3781.7,2.64425]
[1717438692778,2.83444,3783.1,3781.7,2.64425]
[1717438693060,2.86850919,3783.1,3781.7,2.64425]
[1717438693230,0.22516919,3783.1,3781.7,2.64425]
[1717438693560,0.03406919,3783.1,3781.7,2.64425]
[1717438693774,0.55,3783.4,3781.7,2.64425]
[1717438694080,0.03444638,3783.0,3781.7,2.64425]
[1717438694279,0.55,3783.4,3781.7,2.64425]
[1717438694774,0.03419917,3783.3,3781.7,2.64425]
[1717438694967,0.35841992,3783.2,3781.8,0.264425]
[1717438695165,0.39250525,3783.2,3781.8,0.264425]
[1717438695365,3.03579525,3783.2,3781.8,0.264425]
[1717438696300,2.3583,3783.1,3781.2,2.64461]
[1717438696513,5.9083,3783.1,3781.2,2.64461]
[1717438696660,2.6437,3782.6,3781.2,2.64461]
[1717438696858,5.94256663,3783.1,3781.2,2.64461]
[1717438696859,2.64384,3782.4,3781.2,2.64461]
[1717438697163,0.03365775,3782.3,3781.3,1.32126577]
[1717438698373,0.03365775,3782.3,3781.4,2.64451]
[1717438698562,0.03365775,3782.3,3781.5,1.32126577]
[1717438700022,0.03365775,3782.3,3781.6,3.96562577]
[1717438700191,2.64352,3782.9,3781.6,3.96562577]
[1717438700501,2.64362,3782.7,3781.6,3.96562577]
[1717438700885,0.03083293,3782.6,3781.6,3.96562577]
[1717438701401,2.64376,3782.5,3781.6,1.32126577]
[1717438701705,2.64376,3782.5,3781.1,2.6447]
[1717438701866,4.9093,3783.1,3781.1,2.6447]
[1717438701867,2.64396,3782.2,3781.2,1.32126577]
[1717438702209,0.298043,3782.1,3781.2,1.32126577]
[1717438702961,2.6441,3782.0,3781.2,1.32126577]
[1717438703263,2.4919,3781.9,3780.7,0.47643058]
[1717438703460,2.64432,3781.7,3780.8,1.32126577]
[1717438703868,0.03048337,3781.6,3780.8,1.32126577]
[1717438707715,2.64448,3781.5,3780.8,1.32126577]
[1717438708078,0.03032082,3781.4,3780.8,1.32126577]
[1717438711709,2.6446,3781.3,3780.8,1.32126577]
[1717438711909,2.67477779,3781.3,3780.8,1.32126577]
[1717438712115,0.03017779,3781.3,3780.8,1.32126577]
[1717438712602,2.64433,3781.7,3780.8,1.32126577]
[1717438712747,0.02999678,3781.2,3780.8,1.32126577]
[1717438712912,2.64433,3781.7,3780.8,1.32126577]
[1717438713117,0.02995999,3781.1,3780.8,1.32126577]
[1717438713453,2.64433,3781.7,3780.8,1.32126577]
[1717438713666,0.03000273,3781.0,3780.8,1.32126577]
[1717438713872,2.64433,3781.7,3780.8,1.32126577]
[1717438714352,0.0302234,3781.6,3780.8,1.32126577]
[1717438715419,0.54686874,3781.6,3780.8,1.32126577]
[1717438717474,2.64445,3781.5,3780.8,1.32126577]
[1717438717819,0.0300896,3781.4,3780.8,1.32126577]
[1717438720318,9.6001,3782.5,3780.8,1.32126577]
[1717438720524,2.2801,3782.5,3780.8,1.32126577]
[1717438720725,0.02954221,3782.3,3780.8,1.32126577]
[1717438721237,2.67344221,3782.3,3781.1,2.64468]
[1717438721449,2.67344221,3782.3,3781.2,1.32126577]
[1717438721648,2.67344221,3782.3,3781.3,2.64455]
[1717438721831,2.67344221,3782.3,3781.4,1.32126577]
[1717438722030,0.02954221,3782.3,3781.5,2.64442]
[1717438722265,0.02954221,3782.3,3781.6,1.32126577]
[1717438722431,2.2801,3782.5,3781.6,1.32126577]
[1717438722636,0.0296629,3782.2,3781.6,1.32126577]
[1717438722865,2.2801,3782.5,3781.6,1.71783435]
[1717438723065,0.02938521,3782.1,3781.6,1.71783435]
[1717438723265,2.2801,3782.5,3781.6,1.71783435]
[1717438723480,0.02926813,3782.0,3781.6,1.71783435]
[1717438723770,0.02923135,3781.9,3781.6,1.71783435]
[1717438723929,2.2801,3782.5,3781.6,1.71783435]
[1717438724374,0.0294152,3782.4,3781.6,1.71783435]
[1717438724873,0.0294152,3782.4,3781.7,3.08051544]
[1717438725061,0.0294152,3782.4,3781.8,1.32126577]
[1717438725263,2.64366,3782.7,3781.8,1.32126577]
[1717438725476,0.02957407,3782.3,3781.8,1.32126577]
[1717438725640,2.64366,3782.7,3781.8,1.32126577]
[1717438725842,0.02957861,3782.2,3781.8,1.32126577]
[1717438726064,0.264366,3782.6,3781.8,1.32126577]
[1717438726261,2.64378,3782.5,3781.3,2.64454]
[1717438726473,2.67346615,3782.5,3781.4,1.32126577]
[1717438726874,2.64397,3782.2,3780.9,2.64482]
[1717438727086,2.64412,3782.0,3781.0,1.32126577]
[1717438727471,0.02942696,3781.9,3781.0,1.32126577]
[1717438729758,0.02942696,3781.9,3781.1,2.64472]
[1717438729960,0.02942696,3781.9,3781.2,1.32126577]
[1717438734010,0.02942696,3781.9,3781.3,2.64459]
[1717438734216,3.0,3782.3,3781.4,1.71785135]
[1717438734428,0.02831173,3781.8,3781.4,1.32126577]
[1717438734591,3.0,3782.3,3781.4,1.32126577]
[1717438734801,0.02827495,3781.7,3781.4,1.32126577]
[1717438735034,3.0,3782.3,3781.4,1.32126577]
[1717438735196,0.02821061,3781.6,3781.4,1.32126577]
[1717438735395,3.0,3782.3,3781.4,1.32126577]
[1717438735597,0.02817107,3781.5,3781.4,1.32126577]
[1717438735831,2.64388,3782.4,3781.4,1.32126577]
[1717438736454,2.64388,3782.4,3781.5,2.64441]
[1717438736455,0.02846529,3782.3,3781.5,2.64441]
[1717438736599,0.02846529,3782.3,3781.6,1.32126577]
[1717438741444,0.52568982,3782.3,3781.6,1.32126577]
[1717438742144,2.64396,3782.2,3781.6,1.32126577]
[1717438742498,2.67052209,3782.2,3781.6,1.32126577]
[1717438743440,2.67052209,3782.2,3781.1,3.19805345]
[1717438743643,2.67052209,3782.2,3781.2,2.24010788]
[1717438743802,2.67052209,3782.2,3780.8,3.19828345]
[1717438743803,2.64417,3781.9,3780.8,3.19828345]
[1717438744015,2.64417,3781.9,3780.9,1.32126577]
[1717438744200,0.02536323,3781.8,3780.9,1.32126577]
[1717438745744,2.64434,3781.7,3780.9,1.32126577]
[1717438745945,2.91131032,3781.7,3780.9,1.32126577]
[1717438746245,2.93667693,3781.7,3780.9,1.32126577]
[1717438747308,2.64451,3781.5,3780.9,1.32126577]
[1717438747728,0.02535667,3781.4,3780.9,1.32126577]
[1717438752853,2.64419,3781.9,3780.9,1.32126577]
[1717438753058,2.64419,3781.9,3781.0,0.39661858]
[1717438753059,0.02531989,3781.3,3781.0,0.39661858]
[1717438753243,2.64393,3782.3,3781.1,1.32126577]
[1717438753413,2.64393,3782.3,3781.4,2.6445]
[1717438753612,2.64393,3782.3,3781.5,1.32126577]
[1717438755025,2.64393,3782.3,3781.6,2.64437]
[1717438755026,0.02459199,3782.2,3781.6,2.64437]
[1717438755320,2.64393,3782.3,3781.7,1.32126577]
[1717438755725,2.2859,3782.7,3781.8,2.64423]
[1717438755726,0.02459199,3782.2,3781.8,2.64423]
[1717438756054,2.64367,3782.7,3781.9,1.32126577]
[1717438756220,0.02455522,3782.1,3781.9,1.32126577]
[1717438756425,2.64367,3782.7,3781.9,1.78005571]
[1717438756625,0.02439798,3782.0,3781.9,1.32126577]
[1717438756860,2.64367,3782.7,3781.9,1.32126577]
[1717438757038,0.0241972,3782.0,3781.9,1.32126577]
[1717438757383,2.64367,3782.7,3781.9,1.32126577]
[1717438757694,0.0241972,3782.0,3781.9,1.32126577]
[1717438757853,2.64367,3782.7,3781.9,1.32126577]
[1717438758012,0.0241972,3782.0,3781.9,1.32126577]
[1717438758375,2.64367,3782.7,3781.9,1.78005571]
[1717438758561,2.64367,3782.7,3781.9,1.32126577]
[1717438758865,0.02461859,3782.6,3781.9,1.32126577]
[1717438760258,0.02461859,3782.6,3782.0,2.64408]
[1717438760467,0.02461859,3782.6,3782.1,1.32126577]
[1717438762939,0.02461859,3782.6,3782.2,2.64392]
[1717438763124,0.02461859,3782.6,3782.3,1.95379435]
[1717438763319,2.64338,3783.1,3782.3,1.95379435]
[1717438763540,0.02394273,3782.5,3782.3,1.95379435]
[1717438763741,2.64338,3783.1,3782.3,1.95379435]
[1717438764017,0.02412654,3783.0,3782.3,1.95379435]
[1717438764254,0.02412654,3783.0,3782.4,0.69578144]
[1717438764471,0.02412654,3783.0,3782.5,1.32126577]
[1717438785747,2.64347,3782.9,3782.5,1.32126577]
[1717438786251,0.0235809,3782.8,3782.5,1.32126577]
[1717438788459,2.64347,3782.9,3782.5,1.32126577]
[1717438790577,2.64361,3782.7,3782.5,1.32126577]
[1717438791678,2.64361,3782.7,3781.9,2.64416]
[1717438791873,2.64361,3782.7,3782.0,1.32126577]
[1717438794877,3.44094,3782.3,3781.3,2.64457]
[1717438795064,3.44109,3782.1,3781.5,1.32126577]
[1717438796639,2.64409,3782.1,3781.5,1.32126577]